[Event "Early-Titled-Tuesday-Blitz-October-03-2023"]
[Site "Chess.com"]
[Date "2023.10.03"]
[Round "10"]
[White "Aradhya2000"]
[Black "Alexandr_Predke"]
[Result "0-1"]
[WhiteElo "2715"]
[BlackElo "2888"]
[TimeControl "180+1"]
[EndTime "9:58:16 PDT"]
[Termination "Alexandr_Predke won by resignation"]

1. d4 {[%clk 0:03:00.9]} 1... Nf6 {[%clk 0:02:53.5]} 2. Nf3 {[%clk 0:03:01.5]}
2... e6 {[%clk 0:02:50.7]} 3. c4 {[%clk 0:03:00.6]} 3... Bb4+ {[%clk 0:02:49.5]}
4. Nbd2 {[%clk 0:03:00.5]} 4... d5 {[%clk 0:02:45.8]} 5. Qa4+ {[%clk 0:02:59.9]}
5... Nc6 {[%clk 0:02:45.3]} 6. a3 {[%clk 0:03:00.1]} 6... Be7 {[%clk 0:02:40.1]}
7. e3 {[%clk 0:02:59.7]} 7... a5 {[%clk 0:02:30.2]} 8. Bd3 {[%clk 0:02:54.7]}
8... Bd7 {[%clk 0:02:25.4]} 9. Qc2 {[%clk 0:02:53.9]} 9... a4 {[%clk 0:02:26]}
10. O-O {[%clk 0:02:53.4]} 10... O-O {[%clk 0:02:20.7]} 11. e4 {[%clk
0:02:37.9]} 11... dxe4 {[%clk 0:02:16.6]} 12. Nxe4 {[%clk 0:02:38.6]} 12... h6
{[%clk 0:02:12.2]} 13. Bf4 {[%clk 0:02:30.7]} 13... Na5 {[%clk 0:02:09.9]} 14.
Rad1 {[%clk 0:02:29.2]} 14... Nb3 {[%clk 0:02:08]} 15. Qe2 {[%clk 0:02:24.1]}
15... Bc6 {[%clk 0:02:01.1]} 16. Bc2 {[%clk 0:01:39.3]} 16... Bxe4 {[%clk
0:01:57.6]} 17. Bxe4 {[%clk 0:01:39]} 17... Nxe4 {[%clk 0:01:58.5]} 18. Qxe4
{[%clk 0:01:39.4]} 18... Bd6 {[%clk 0:01:45.8]} 19. Bxd6 {[%clk 0:01:36.9]}
19... cxd6 {[%clk 0:01:46.7]} 20. Qxb7 {[%clk 0:01:37.2]} 20... Qc8 {[%clk
0:01:46.7]} 21. Qb4 {[%clk 0:01:33.4]} 21... Qa6 {[%clk 0:01:42.3]} 22. c5
{[%clk 0:01:10.1]} 22... Rab8 {[%clk 0:01:36.2]} 23. Qc3 {[%clk 0:01:10.2]}
23... Rfc8 {[%clk 0:01:32.7]} 24. Rfe1 {[%clk 0:01:10.2]} 24... Qb7 {[%clk
0:01:01.2]} 25. Qc4 {[%clk 0:01:04.4]} 25... dxc5 {[%clk 0:00:54.1]} 26. Qxa4
{[%clk 0:01:01]} 26... c4 {[%clk 0:00:48]} 27. Ne5 {[%clk 0:00:49.7]} 27... Rc7
{[%clk 0:00:29.5]} 28. Nxc4 {[%clk 0:00:48.1]} 28... Ra8 {[%clk 0:00:29.5]} 29.
Na5 {[%clk 0:00:42.9]} 29... Rxa5 {[%clk 0:00:25.6]} 30. Qe8+ {[%clk 0:00:42.7]}
30... Kh7 {[%clk 0:00:26.3]} 31. Qd8 {[%clk 0:00:38.9]} 31... Rd5 {[%clk
0:00:19.9]} 32. Qh4 {[%clk 0:00:39.5]} 32... Rcd7 {[%clk 0:00:17.7]} 33. Re4
{[%clk 0:00:36.1]} 33... Qb6 {[%clk 0:00:17.2]} 34. h3 {[%clk 0:00:34.8]} 34...
Nxd4 {[%clk 0:00:15.8]} 35. Rde1 {[%clk 0:00:31.4]} 35... Nf5 {[%clk 0:00:16]}
36. Qf4 {[%clk 0:00:30.1]} 36... Rd1 {[%clk 0:00:14.6]} 37. b4 {[%clk
0:00:29.6]} 37... R7d2 {[%clk 0:00:11.1]} 38. g4 {[%clk 0:00:28.8]} 38... Nd6
{[%clk 0:00:06.6]} 39. Re5 {[%clk 0:00:24.2]} 39... Rd4 {[%clk 0:00:05.9]} 40.
Qf3 {[%clk 0:00:23.8]} 40... Rxe1+ {[%clk 0:00:05.9]} 41. Rxe1 {[%clk
0:00:23.7]} 41... Qb5 {[%clk 0:00:05.5]} 42. Re3 {[%clk 0:00:20.3]} 42... Qd5
{[%clk 0:00:05.3]} 43. Qxd5 {[%clk 0:00:20.2]} 43... exd5 {[%clk 0:00:05.3]} 44.
Re7 {[%clk 0:00:20]} 44... Nb5 {[%clk 0:00:04.1]} 45. a4 {[%clk 0:00:18.1]}
45... Nc3 {[%clk 0:00:04.4]} 46. a5 {[%clk 0:00:18.7]} 46... Rxb4 {[%clk
0:00:04.5]} 47. a6 {[%clk 0:00:18.8]} 47... Ra4 {[%clk 0:00:04.8]} 48. a7 {[%clk
0:00:19.3]} 48... Nb5 {[%clk 0:00:05.1]} 49. Rd7 {[%clk 0:00:19.6]} 49... Rxa7
{[%clk 0:00:04.6]} 50. Rxd5 {[%clk 0:00:19.9]} 50... Rb7 {[%clk 0:00:05.3]} 51.
Kg2 {[%clk 0:00:18.4]} 51... Nc3 {[%clk 0:00:05.5]} 52. Rd8 {[%clk 0:00:18.3]}
52... Re7 {[%clk 0:00:05.4]} 53. h4 {[%clk 0:00:17.8]} 53... Ne4 {[%clk
0:00:05.9]} 54. Kf3 {[%clk 0:00:17.8]} 54... Nf6 {[%clk 0:00:06.2]} 55. g5
{[%clk 0:00:17.4]} 55... hxg5 {[%clk 0:00:06.1]} 56. hxg5 {[%clk 0:00:18.3]}
56... Nh5 {[%clk 0:00:06.8]} 57. Kg4 {[%clk 0:00:18.4]} 57... g6 {[%clk
0:00:07.4]} 58. f3 {[%clk 0:00:15.5]} 58... Ng7 {[%clk 0:00:07.7]} 59. Rd1
{[%clk 0:00:14.8]} 59... Ne6 {[%clk 0:00:08]} 60. Re1 {[%clk 0:00:14.6]} 60...
Rc7 {[%clk 0:00:07.9]} 61. Re4 {[%clk 0:00:12.3]} 61... Rc5 {[%clk 0:00:07.9]}
62. f4 {[%clk 0:00:09.1]} 62... Kg7 {[%clk 0:00:08.5]} 63. Ra4 {[%clk
0:00:08.4]} 63... Rd5 {[%clk 0:00:08.9]} 64. Kg3 {[%clk 0:00:07.4]} 64... Rd3+
{[%clk 0:00:09]} 65. Kg4 {[%clk 0:00:07.6]} 65... Rd4 {[%clk 0:00:09.9]} 66.
Rxd4 {[%clk 0:00:06.6]} 66... Nxd4 {[%clk 0:00:10.8]} 67. Kg3 {[%clk 0:00:07.1]}
67... Kf8 {[%clk 0:00:10.8]} 68. Kf2 {[%clk 0:00:06.9]} 68... Ke7 {[%clk
0:00:11.2]} 69. Ke3 {[%clk 0:00:07.6]} 69... Nf5+ {[%clk 0:00:11.7]} 70. Kd3
{[%clk 0:00:08]} 70... Ke6 {[%clk 0:00:12.5]} 71. Ke4 {[%clk 0:00:08.5]} 71...
Nd6+ {[%clk 0:00:13.2]} 72. Kd4 {[%clk 0:00:08.9]} 72... Kf5 {[%clk 0:00:14.1]}
73. Kd5 {[%clk 0:00:09.6]} 73... Kxf4 {[%clk 0:00:14.4]} 74. Kxd6 {[%clk
0:00:09.8]} 74... Kxg5 {[%clk 0:00:15.3]} 75. Ke5 {[%clk 0:00:10.2]} 75... f5
{[%clk 0:00:16.1]} 0-1

[Event "Early-Titled-Tuesday-Blitz-October-03-2023"]
[Site "Chess.com"]
[Date "2023.10.03"]
[Round "10"]
[White "Goi_Manne"]
[Black "gtnamfrq"]
[Result "0-1"]
[WhiteElo "2292"]
[BlackElo "2421"]
[TimeControl "180+1"]
[EndTime "9:58:20 PDT"]
[Termination "gtnamfrq won by resignation"]

1. e4 {[%clk 0:03:00.9]} 1... c5 {[%clk 0:03:00.2]} 2. Nf3 {[%clk 0:03:00.2]}
2... e6 {[%clk 0:03:00.7]} 3. c3 {[%clk 0:02:59.3]} 3... Nf6 {[%clk 0:03:00.3]}
4. e5 {[%clk 0:02:59.3]} 4... Nd5 {[%clk 0:03:01]} 5. g3 {[%clk 0:03:00]} 5...
d6 {[%clk 0:03:00.2]} 6. exd6 {[%clk 0:03:00.6]} 6... Bxd6 {[%clk 0:03:01]} 7.
Bg2 {[%clk 0:03:01.2]} 7... O-O {[%clk 0:02:59.8]} 8. O-O {[%clk 0:03:01.7]}
8... Nc6 {[%clk 0:02:56.7]} 9. d4 {[%clk 0:03:01.1]} 9... cxd4 {[%clk
0:02:56.2]} 10. Nxd4 {[%clk 0:03:02]} 10... Bd7 {[%clk 0:02:28.2]} 11. Nxc6
{[%clk 0:02:47.6]} 11... Bxc6 {[%clk 0:02:28.1]} 12. Nd2 {[%clk 0:02:44.7]}
12... Qe7 {[%clk 0:02:19.7]} 13. Nc4 {[%clk 0:02:39.6]} 13... Bc7 {[%clk
0:02:15.8]} 14. Re1 {[%clk 0:02:34.8]} 14... Rfd8 {[%clk 0:02:06.2]} 15. Qc2
{[%clk 0:02:32.4]} 15... Rac8 {[%clk 0:01:59.1]} 16. Ne3 {[%clk 0:02:28.4]}
16... Bb6 {[%clk 0:01:45.9]} 17. Nxd5 {[%clk 0:02:26.9]} 17... Bxd5 {[%clk
0:01:46.8]} 18. Bxd5 {[%clk 0:02:23.4]} 18... Rxd5 {[%clk 0:01:47.7]} 19. Be3
{[%clk 0:02:23.4]} 19... Bxe3 {[%clk 0:01:47.6]} 20. Rxe3 {[%clk 0:02:24.3]}
20... Rcd8 {[%clk 0:01:48.1]} 21. Rae1 {[%clk 0:02:24.2]} 21... Rd2 {[%clk
0:01:46.8]} 22. Qb3 {[%clk 0:02:22.9]} 22... Qf6 {[%clk 0:01:45.5]} 23. R3e2
{[%clk 0:02:16]} 23... Rxe2 {[%clk 0:01:41.5]} 24. Rxe2 {[%clk 0:02:16.9]} 24...
b6 {[%clk 0:01:41.7]} 25. Kg2 {[%clk 0:02:14.9]} 25... h5 {[%clk 0:01:41.4]} 26.
Qc4 {[%clk 0:02:10.7]} 26... g6 {[%clk 0:01:27.4]} 27. Qc7 {[%clk 0:02:06.6]}
27... h4 {[%clk 0:01:16.8]} 28. Qxa7 {[%clk 0:01:38.5]} 28... h3+ {[%clk
0:01:15.8]} 29. Kxh3 {[%clk 0:01:37.9]} 29... Qf3 {[%clk 0:01:16]} 30. Qxb6
{[%clk 0:01:29.7]} 30... Rd5 {[%clk 0:01:09.9]} 31. Qb8+ {[%clk 0:01:28.6]}
31... Kh7 {[%clk 0:01:09.1]} 32. Re5 {[%clk 0:01:29]} 32... Rd2 {[%clk 0:00:50]}
33. Qa7 {[%clk 0:01:09.5]} 33... Rxf2 {[%clk 0:00:46.8]} 34. Qd4 {[%clk
0:00:46.9]} 34... Qg2+ {[%clk 0:00:39.3]} 35. Kg4 {[%clk 0:00:47.3]} 35... Qxh2
{[%clk 0:00:34.4]} 36. a4 {[%clk 0:00:41.8]} 36... Rg2 {[%clk 0:00:17.5]} 37.
Qf4 {[%clk 0:00:36.3]} 37... Rxb2 {[%clk 0:00:07.1]} 38. Qxf7+ {[%clk
0:00:35.4]} 38... Kh6 {[%clk 0:00:06]} 39. Qf8+ {[%clk 0:00:27.2]} 39... Kh7
{[%clk 0:00:06.1]} 40. Qe7+ {[%clk 0:00:27.7]} 40... Kh6 {[%clk 0:00:04.5]} 41.
Qh4+ {[%clk 0:00:12.5]} 41... Qxh4+ {[%clk 0:00:04.8]} 42. Kxh4 {[%clk
0:00:11.5]} 42... Ra2 {[%clk 0:00:05.4]} 43. Ra5 {[%clk 0:00:10.1]} 43... e5
{[%clk 0:00:04.9]} 44. Rxe5 {[%clk 0:00:05.7]} 44... Rxa4+ {[%clk 0:00:05.5]}
45. Kh3 {[%clk 0:00:06.1]} 45... Rc4 {[%clk 0:00:06.2]} 46. Re3 {[%clk
0:00:06.4]} 46... Kg5 {[%clk 0:00:06.8]} 47. Rd3 {[%clk 0:00:07.1]} 47... Kf5
{[%clk 0:00:07.3]} 48. Kg2 {[%clk 0:00:07.7]} 48... Ke4 {[%clk 0:00:07.8]} 49.
Rd6 {[%clk 0:00:07.6]} 49... g5 {[%clk 0:00:06.2]} 50. Rg6 {[%clk 0:00:07.4]}
50... Kf5 {[%clk 0:00:06.5]} 51. Rg8 {[%clk 0:00:08]} 51... Rxc3 {[%clk
0:00:06.9]} 52. Rf8+ {[%clk 0:00:08.8]} 52... Kg4 {[%clk 0:00:07.4]} 53. Re8
{[%clk 0:00:08.9]} 53... Rc2+ {[%clk 0:00:07.8]} 54. Kf1 {[%clk 0:00:08.8]}
54... Kxg3 {[%clk 0:00:08.4]} 55. Re3+ {[%clk 0:00:09.5]} 55... Kh2 {[%clk
0:00:07.9]} 56. Re4 {[%clk 0:00:08.9]} 56... Rc1+ {[%clk 0:00:06.7]} 57. Kf2
{[%clk 0:00:08.8]} 57... Rc2+ {[%clk 0:00:03.1]} 58. Kf3 {[%clk 0:00:07.9]}
58... Kh3 {[%clk 0:00:02.8]} 59. Ra4 {[%clk 0:00:06.6]} 59... g4+ {[%clk
0:00:03.3]} 60. Kf4 {[%clk 0:00:04.9]} 60... g3 {[%clk 0:00:03.7]} 61. Ra3
{[%clk 0:00:05.3]} 61... Kh2 {[%clk 0:00:02.9]} 62. Ra8 {[%clk 0:00:03.6]} 62...
g2 {[%clk 0:00:02.9]} 63. Rh8+ {[%clk 0:00:04.3]} 63... Kg1 {[%clk 0:00:03.4]}
64. Kf3 {[%clk 0:00:04.9]} 64... Rc3+ {[%clk 0:00:03.3]} 65. Ke2 {[%clk
0:00:05.6]} 65... Rc7 {[%clk 0:00:03.1]} 66. Re8 {[%clk 0:00:04.8]} 66... Rf7
{[%clk 0:00:03.2]} 67. Re6 {[%clk 0:00:04.3]} 67... Rh7 {[%clk 0:00:02.5]} 68.
Re8 {[%clk 0:00:04.4]} 68... Kh1 {[%clk 0:00:02.9]} 69. Rg8 {[%clk 0:00:04.3]}
69... g1=Q {[%clk 0:00:03.4]} 0-1

[Event "Early-Titled-Tuesday-Blitz-October-03-2023"]
[Site "Chess.com"]
[Date "2023.10.03"]
[Round "10"]
[White "Roedor"]
[Black "noblerone"]
[Result "1-0"]
[WhiteElo "2419"]
[BlackElo "2486"]
[TimeControl "180+1"]
[EndTime "9:58:43 PDT"]
[Termination "Roedor won on time"]

1. d4 {[%clk 0:02:57]} 1... d5 {[%clk 0:02:59.9]} 2. c4 {[%clk 0:02:55.7]} 2...
c6 {[%clk 0:03:00.6]} 3. Nf3 {[%clk 0:02:55.4]} 3... Nf6 {[%clk 0:03:01.3]} 4.
e3 {[%clk 0:02:55.5]} 4... Bg4 {[%clk 0:03:00.6]} 5. Nc3 {[%clk 0:02:55.3]} 5...
e6 {[%clk 0:03:00.7]} 6. h3 {[%clk 0:02:54]} 6... Bh5 {[%clk 0:02:58.3]} 7. g4
{[%clk 0:02:53.8]} 7... Bg6 {[%clk 0:02:58.7]} 8. Ne5 {[%clk 0:02:54.4]} 8...
Nfd7 {[%clk 0:02:59.4]} 9. Nxg6 {[%clk 0:02:53.9]} 9... hxg6 {[%clk 0:03:00.3]}
10. Bg2 {[%clk 0:02:54.6]} 10... Nf6 {[%clk 0:02:58.7]} 11. Qb3 {[%clk
0:02:53.9]} 11... Qc7 {[%clk 0:02:48.6]} 12. Bd2 {[%clk 0:02:53.9]} 12... Nbd7
{[%clk 0:02:25.9]} 13. Rc1 {[%clk 0:02:52.1]} 13... Nb6 {[%clk 0:02:19.4]} 14.
cxd5 {[%clk 0:02:49.7]} 14... exd5 {[%clk 0:02:16.9]} 15. Nxd5 {[%clk
0:02:45.9]} 15... Nbxd5 {[%clk 0:02:07.8]} 16. Bxd5 {[%clk 0:02:44.9]} 16...
Nxd5 {[%clk 0:01:43.1]} 17. Qxd5 {[%clk 0:02:43.7]} 17... Be7 {[%clk 0:01:39.2]}
18. a3 {[%clk 0:02:27.2]} 18... Qb6 {[%clk 0:01:08.5]} 19. Qa2 {[%clk
0:02:21.9]} 19... Bh4 {[%clk 0:01:02.7]} 20. Bb4 {[%clk 0:02:10.3]} 20... Qb5
{[%clk 0:00:51.9]} 21. Qc4 {[%clk 0:02:08.3]} 21... Qg5 {[%clk 0:00:48.4]} 22.
Ke2 {[%clk 0:01:59.9]} 22... O-O-O {[%clk 0:00:40.2]} 23. Qc5 {[%clk 0:01:59.4]}
23... Qxc5 {[%clk 0:00:26.3]} 24. Bxc5 {[%clk 0:02:00.3]} 24... a6 {[%clk
0:00:27.2]} 25. a4 {[%clk 0:01:52.5]} 25... Rhe8 {[%clk 0:00:27.1]} 26. Kf3
{[%clk 0:01:50.2]} 26... Rd5 {[%clk 0:00:26.1]} 27. b4 {[%clk 0:01:47.4]} 27...
Be7 {[%clk 0:00:25.7]} 28. Bxe7 {[%clk 0:01:44.9]} 28... Rxe7 {[%clk 0:00:26.6]}
29. Rc5 {[%clk 0:01:45.3]} 29... Rd6 {[%clk 0:00:26.2]} 30. Rhc1 {[%clk
0:01:44.2]} 30... Kd7 {[%clk 0:00:26.1]} 31. b5 {[%clk 0:01:43.6]} 31... axb5
{[%clk 0:00:27]} 32. axb5 {[%clk 0:01:44.5]} 32... f6 {[%clk 0:00:23.5]} 33.
bxc6+ {[%clk 0:01:41.6]} 33... Rxc6 {[%clk 0:00:21.5]} 34. Rxc6 {[%clk 0:01:39]}
34... bxc6 {[%clk 0:00:21.2]} 35. Ra1 {[%clk 0:01:37.8]} 35... Kd6 {[%clk
0:00:20.4]} 36. Ra6 {[%clk 0:01:36.7]} 36... Rb7 {[%clk 0:00:20.3]} 37. e4
{[%clk 0:01:34.8]} 37... Kd7 {[%clk 0:00:19.1]} 38. d5 {[%clk 0:01:17.3]} 38...
cxd5 {[%clk 0:00:17.9]} 39. exd5 {[%clk 0:01:18.2]} 39... Rb3+ {[%clk
0:00:16.1]} 40. Ke4 {[%clk 0:01:16.1]} 40... Rb4+ {[%clk 0:00:16.1]} 41. Kd3
{[%clk 0:01:15.1]} 41... Rb3+ {[%clk 0:00:15.4]} 42. Kc4 {[%clk 0:01:13.5]}
42... Rf3 {[%clk 0:00:15.4]} 43. Ra7+ {[%clk 0:01:12.7]} 43... Kd6 {[%clk
0:00:15.9]} 44. Rxg7 {[%clk 0:01:09.5]} 44... Rf4+ {[%clk 0:00:16.4]} 45. Kd3
{[%clk 0:01:09.3]} 45... g5 {[%clk 0:00:15.9]} 46. Ke3 {[%clk 0:01:04.2]} 46...
Kxd5 {[%clk 0:00:15.2]} 47. f3 {[%clk 0:00:58]} 47... Ke6 {[%clk 0:00:13.7]} 48.
h4 {[%clk 0:00:58.1]} 48... Ra4 {[%clk 0:00:11.9]} 49. h5 {[%clk 0:00:58.2]}
49... Ra1 {[%clk 0:00:10.4]} 50. Kf2 {[%clk 0:00:56.5]} 50... Rh1 {[%clk
0:00:09.9]} 51. Kg2 {[%clk 0:00:56.6]} 51... Rh4 {[%clk 0:00:09.8]} 52. Ra7
{[%clk 0:00:55.7]} 52... Ke5 {[%clk 0:00:09]} 53. Ra5+ {[%clk 0:00:51.8]} 53...
Ke6 {[%clk 0:00:09.3]} 54. Rf5 {[%clk 0:00:49.7]} 54... Ke7 {[%clk 0:00:08.3]}
55. Kg3 {[%clk 0:00:48.9]} 55... Rh1 {[%clk 0:00:08.4]} 56. f4 {[%clk
0:00:46.3]} 56... gxf4+ {[%clk 0:00:08.7]} 57. Rxf4 {[%clk 0:00:43.9]} 57... Ke6
{[%clk 0:00:08.8]} 58. Rf2 {[%clk 0:00:43]} 58... Rg1+ {[%clk 0:00:08.6]} 59.
Rg2 {[%clk 0:00:42.8]} 59... Ra1 {[%clk 0:00:09.5]} 60. Kh4 {[%clk 0:00:42]}
60... Kf7 {[%clk 0:00:09]} 61. Rb2 {[%clk 0:00:41]} 61... Ra7 {[%clk 0:00:09.3]}
62. Rb6 {[%clk 0:00:39.2]} 62... Kg7 {[%clk 0:00:09.5]} 63. Kg3 {[%clk
0:00:38.3]} 63... Rc7 {[%clk 0:00:09.3]} 64. Rb5 {[%clk 0:00:38.3]} 64... Ra7
{[%clk 0:00:09.5]} 65. Kf4 {[%clk 0:00:38.5]} 65... Rc7 {[%clk 0:00:09.6]} 66.
Kf5 {[%clk 0:00:38.7]} 66... Ra7 {[%clk 0:00:09.9]} 67. Rd5 {[%clk 0:00:36.7]}
67... Rf7 {[%clk 0:00:08.2]} 68. Ke6 {[%clk 0:00:36.7]} 68... Rf8 {[%clk
0:00:07.7]} 69. Rd7+ {[%clk 0:00:35]} 69... Kh6 {[%clk 0:00:08.1]} 70. Rf7
{[%clk 0:00:35.4]} 70... Ra8 {[%clk 0:00:07.4]} 71. Rxf6+ {[%clk 0:00:35]} 71...
Kg7 {[%clk 0:00:07.7]} 72. Rg6+ {[%clk 0:00:35.2]} 72... Kh7 {[%clk 0:00:08]}
73. Kf5 {[%clk 0:00:34.1]} 73... Ra5+ {[%clk 0:00:06.9]} 74. Kf4 {[%clk
0:00:34.2]} 74... Ra4+ {[%clk 0:00:07.4]} 75. Kg5 {[%clk 0:00:34.5]} 75... Ra5+
{[%clk 0:00:06.7]} 76. Kh4 {[%clk 0:00:34.8]} 76... Ra4 {[%clk 0:00:07.5]} 77.
Rb6 {[%clk 0:00:35.2]} 77... Ra7 {[%clk 0:00:08]} 78. h6 {[%clk 0:00:29.2]}
78... Rc7 {[%clk 0:00:07]} 79. g5 {[%clk 0:00:28.7]} 79... Ra7 {[%clk
0:00:05.9]} 80. Kh5 {[%clk 0:00:28.2]} 80... Kh8 {[%clk 0:00:04.7]} 81. g6
{[%clk 0:00:28.5]} 81... Ra8 {[%clk 0:00:04.8]} 82. Kg4 {[%clk 0:00:28.7]} 82...
Rc8 {[%clk 0:00:04.3]} 83. Kf5 {[%clk 0:00:28.8]} 83... Ra8 {[%clk 0:00:03.8]}
84. Re6 {[%clk 0:00:29]} 84... Rf8+ {[%clk 0:00:03.5]} 85. Ke5 {[%clk
0:00:28.2]} 85... Ra8 {[%clk 0:00:04.4]} 86. Kf6 {[%clk 0:00:28.3]} 86... Rf8+
{[%clk 0:00:03.9]} 87. Ke7 {[%clk 0:00:28.4]} 87... Rg8 {[%clk 0:00:04.3]} 88.
Rd6 {[%clk 0:00:27.8]} 1-0

[Event "Early-Titled-Tuesday-Blitz-October-03-2023"]
[Site "Chess.com"]
[Date "2023.10.03"]
[Round "10"]
[White "CSB7"]
[Black "Elsa167"]
[Result "0-1"]
[WhiteElo "2756"]
[BlackElo "2918"]
[TimeControl "180+1"]
[EndTime "9:58:58 PDT"]
[Termination "Elsa167 won on time"]

1. e4 {[%clk 0:03:00.9]} 1... e6 {[%clk 0:02:57.5]} 2. Nc3 {[%clk 0:02:57.2]}
2... d5 {[%clk 0:02:58.2]} 3. Nf3 {[%clk 0:02:57.5]} 3... Nf6 {[%clk 0:02:57.2]}
4. e5 {[%clk 0:02:57.4]} 4... Nfd7 {[%clk 0:02:57.9]} 5. Ne2 {[%clk 0:02:57.3]}
5... c5 {[%clk 0:02:57.7]} 6. c3 {[%clk 0:02:57.7]} 6... b6 {[%clk 0:02:30]} 7.
d4 {[%clk 0:02:55.2]} 7... Ba6 {[%clk 0:02:30.3]} 8. h4 {[%clk 0:02:48.6]} 8...
Be7 {[%clk 0:02:29.3]} 9. Nf4 {[%clk 0:02:36.2]} 9... Bxf1 {[%clk 0:02:29.1]}
10. Kxf1 {[%clk 0:02:37.1]} 10... Nc6 {[%clk 0:02:25.5]} 11. Be3 {[%clk
0:02:11.7]} 11... h6 {[%clk 0:02:21.4]} 12. g3 {[%clk 0:02:03.1]} 12... Qc8
{[%clk 0:02:15.8]} 13. Kg2 {[%clk 0:02:00.1]} 13... Qa6 {[%clk 0:02:14.8]} 14.
b3 {[%clk 0:01:42.8]} 14... O-O-O {[%clk 0:01:57.8]} 15. g4 {[%clk 0:01:29.2]}
15... Kb8 {[%clk 0:01:46.2]} 16. Qb1 {[%clk 0:01:15]} 16... Rc8 {[%clk
0:01:30.8]} 17. Nh5 {[%clk 0:01:09.3]} 17... g6 {[%clk 0:01:26.1]} 18. Nf4
{[%clk 0:01:02.7]} 18... cxd4 {[%clk 0:01:13.4]} 19. cxd4 {[%clk 0:01:03.6]}
19... Nb4 {[%clk 0:01:12.6]} 20. Ne1 {[%clk 0:00:50]} 20... Bxh4 {[%clk
0:00:52.9]} 21. Nxg6 {[%clk 0:00:31.8]} 21... fxg6 {[%clk 0:00:53]} 22. Rxh4
{[%clk 0:00:32.2]} 22... g5 {[%clk 0:00:51.8]} 23. Rh3 {[%clk 0:00:32.8]} 23...
Qe2 {[%clk 0:00:49.2]} 24. Qd1 {[%clk 0:00:27.1]} 24... Qxd1 {[%clk 0:00:47.1]}
25. Rxd1 {[%clk 0:00:28]} 25... Nxa2 {[%clk 0:00:42.1]} 26. Nf3 {[%clk
0:00:28.1]} 26... a5 {[%clk 0:00:13.2]} 27. Rdh1 {[%clk 0:00:28.2]} 27... b5
{[%clk 0:00:11.7]} 28. Ra1 {[%clk 0:00:25.4]} 28... Rc2 {[%clk 0:00:10.4]} 29.
Nxg5 {[%clk 0:00:23.5]} 29... Rg8 {[%clk 0:00:06.5]} 30. Rxh6 {[%clk 0:00:22.5]}
30... a4 {[%clk 0:00:04.6]} 31. bxa4 {[%clk 0:00:22.3]} 31... b4 {[%clk
0:00:05.3]} 32. Nxe6 {[%clk 0:00:11.8]} 32... Nc3 {[%clk 0:00:05.7]} 33. Nc5
{[%clk 0:00:10.4]} 33... Nxc5 {[%clk 0:00:05.6]} 34. dxc5 {[%clk 0:00:11.3]}
34... b3 {[%clk 0:00:06.3]} 35. Rb6+ {[%clk 0:00:10.6]} 35... Kc7 {[%clk
0:00:05.2]} 36. Rxb3 {[%clk 0:00:11.5]} 36... d4 {[%clk 0:00:05.6]} 37. Bxd4
{[%clk 0:00:05.1]} 37... Rxg4+ {[%clk 0:00:05.3]} 38. Kf3 {[%clk 0:00:06]} 38...
Rxd4 {[%clk 0:00:06.2]} 39. Rh1 {[%clk 0:00:05.7]} 39... Kc6 {[%clk 0:00:04.2]}
40. Rh8 {[%clk 0:00:04.1]} 40... Rd3+ {[%clk 0:00:04.2]} 41. Kg2 {[%clk
0:00:03.8]} 41... Rdd2 {[%clk 0:00:04]} 42. Rc8+ {[%clk 0:00:03.9]} 42... Kd7
{[%clk 0:00:04.1]} 43. Rf8 {[%clk 0:00:03.4]} 43... Ne4 {[%clk 0:00:03.6]} 44.
Rbf3 {[%clk 0:00:04]} 44... Rxc5 {[%clk 0:00:03]} 45. R3f7+ {[%clk 0:00:04]}
45... Ke6 {[%clk 0:00:03.3]} 46. Rf4 {[%clk 0:00:03.6]} 46... Rxe5 {[%clk
0:00:03.7]} 47. Re8+ {[%clk 0:00:03.1]} 47... Kd5 {[%clk 0:00:03.7]} 48. Rxe5+
{[%clk 0:00:02.8]} 48... Kxe5 {[%clk 0:00:04.6]} 49. Rf8 {[%clk 0:00:03.1]}
49... Ra2 {[%clk 0:00:05.2]} 50. Re8+ {[%clk 0:00:03.3]} 50... Kf4 {[%clk
0:00:05.1]} 51. Rf8+ {[%clk 0:00:03.6]} 51... Ke5 {[%clk 0:00:05.7]} 52. Re8+
{[%clk 0:00:04]} 52... Kf5 {[%clk 0:00:06.4]} 53. Rf8+ {[%clk 0:00:04.2]} 53...
Kg6 {[%clk 0:00:06.3]} 54. Rg8+ {[%clk 0:00:03.8]} 54... Kf7 {[%clk 0:00:06.5]}
55. Rg4 {[%clk 0:00:02.8]} 55... Rxf2+ {[%clk 0:00:04.7]} 56. Kg1 {[%clk
0:00:03.1]} 56... Re2 {[%clk 0:00:05.4]} 57. Kf1 {[%clk 0:00:03.5]} 57... Re3
{[%clk 0:00:06.1]} 58. a5 {[%clk 0:00:02.7]} 58... Nf6 {[%clk 0:00:05.4]} 59.
Rf4 {[%clk 0:00:02.7]} 59... Ra3 {[%clk 0:00:05.3]} 60. Kf2 {[%clk 0:00:02.9]}
60... Rxa5 {[%clk 0:00:05.1]} 61. Rf3 {[%clk 0:00:03.5]} 61... Ra4 {[%clk
0:00:05.1]} 62. Rd3 {[%clk 0:00:03.1]} 62... Ke6 {[%clk 0:00:05.2]} 63. Kf3
{[%clk 0:00:03.5]} 63... Nd7 {[%clk 0:00:05.3]} 64. Rb3 {[%clk 0:00:03.6]} 64...
Ne5+ {[%clk 0:00:05.5]} 65. Kg3 {[%clk 0:00:04]} 65... Kf5 {[%clk 0:00:05.8]}
66. Kf2 {[%clk 0:00:04.1]} 66... Ra2+ {[%clk 0:00:03.8]} 67. Kg3 {[%clk
0:00:04.4]} 67... Ra4 {[%clk 0:00:04.1]} 68. Rb5 {[%clk 0:00:03.7]} 68... Ra3+
{[%clk 0:00:04]} 69. Kf2 {[%clk 0:00:03.8]} 69... Kf4 {[%clk 0:00:03.9]} 70.
Rb4+ {[%clk 0:00:04]} 70... Kf5 {[%clk 0:00:04.6]} 71. Rb5 {[%clk 0:00:04.4]}
71... Rc3 {[%clk 0:00:03.1]} 72. Ra5 {[%clk 0:00:04.4]} 72... Rc2+ {[%clk
0:00:02]} 73. Ke3 {[%clk 0:00:03.4]} 73... Rc3+ {[%clk 0:00:02.6]} 74. Kd2
{[%clk 0:00:03.1]} 74... Rc8 {[%clk 0:00:02.2]} 75. Ke2 {[%clk 0:00:03.4]} 75...
Ke4 {[%clk 0:00:02.7]} 76. Ra4+ {[%clk 0:00:03.8]} 76... Kd5 {[%clk 0:00:03.4]}
77. Ra5+ {[%clk 0:00:04.1]} 77... Kd4 {[%clk 0:00:04.1]} 78. Ra4+ {[%clk
0:00:04.2]} 78... Nc4 {[%clk 0:00:04.8]} 79. Ra7 {[%clk 0:00:04.1]} 79... Re8+
{[%clk 0:00:04.8]} 80. Kf2 {[%clk 0:00:04.4]} 80... Nd6 {[%clk 0:00:03.3]} 81.
Ra4+ {[%clk 0:00:03.6]} 81... Ke5 {[%clk 0:00:02.1]} 82. Ra5+ {[%clk 0:00:04]}
82... Kf4 {[%clk 0:00:02.1]} 83. Ra4+ {[%clk 0:00:03.3]} 83... Ne4+ {[%clk
0:00:02.7]} 84. Ke2 {[%clk 0:00:03.7]} 84... Rd8 {[%clk 0:00:03.5]} 85. Rb4
{[%clk 0:00:02.9]} 85... Rd2+ {[%clk 0:00:03.8]} 86. Ke1 {[%clk 0:00:03.3]}
86... Ra2 {[%clk 0:00:04.4]} 87. Rb8 {[%clk 0:00:02.5]} 87... Kf3 {[%clk
0:00:04]} 88. Re8 {[%clk 0:00:01.6]} 88... Ke3 {[%clk 0:00:03]} 0-1